[Event "26th Troya Open 2018"]
[Site "Canakkale"]
[Date "2018.08.09"]
[Round "6.17"]
[White "Buyukbozkoyun, Baran"]
[Black "Erke, Mustafa Yigit"]
[Result "0-1"]
[ECO "C77"]
[WhiteElo "1582"]
[BlackElo "1599"]
[Annotator "NA"]
[PlyCount "84"]
[EventDate "2018.08.06"]
[EventType "swiss"]
[EventCountry "TUR"]
[SourceTitle "playchess.com"]
[Source "ChessBase"]
[SourceQuality "1"]
[TimeControl "5400+30"]

1. e4 e5 2. Nf3 Nc6 3. Bb5 a6 4. Ba4 Nf6 5. d3 Bc5 6. Nc3 O-O 7. Bg5 h6 8. Bh4 d6 9. h3 g5 {[%emt 0:49:30] [%clk 0:44]} 10. Bg3 {[%emt 0:41:00]} Nh5 {[%emt 0:01:30]} 11. Bh2 {[%emt 0:00:30]} g4 {[%emt 0:00:30]} 12. hxg4 {[%emt 0:00:30]} Bxg4 {[%emt 0:00:30]} 13. Bxc6 {[%emt 0:00:30]} bxc6 {[%emt 0:00:30]} 14. Qd2 {[%emt 0:00:30]} Qf6 {[%emt 0:00:30]} 15. O-O-O {[%emt 0:00:30]} Kh7 {[%emt 0:00:30]} 16. Bg3 {[%emt 0:00:30]} Bxf3 {[%emt 0:00:30]} 17. gxf3 {[%emt 0:00:30]} Qxf3 {[%emt 0:00:30]} 18. Rh4 {[%emt 0:00:30]} Be3 {[%emt 0:00:30]} 19. Qxe3 {[%emt 0:00:30]} Qxe3+ {[%emt 0:00:30]} 20. fxe3 {[%emt 0:00:30]} Nxg3 {[%emt 0:00:30]} 21. Rg1 {[%emt 0:00:30]} Rg8 {[%emt 0:00:30]} 22. Rh3 {[%emt 0:00:30]} Rg6 {[%emt 0:00:30]} 23. Rhxg3 {[%emt 0:00:30]} Rag8 {[%emt 0:00:30]} 24. Ne2 {[%emt 0:00:30]} h5 {[%emt 0:00:30]} 25. Kd1 {[%emt 0:00:30]} h4 {[%emt 0:00:30]} 26. Rxg6 {[%emt 0:00:30]} fxg6 {[%emt 0:00:30]} 27. Ke1 {[%emt 0:00:30]} g5 {[%emt 0:00:30]} 28. Kf2 {[%emt 0:00:30]} Kh6 {[%emt 0:06:30]} 29. Kg2 {[%emt 0:02:30]} Rf8 {[%emt 0:12:30]} 30. c4 {[%emt 0:05:30]} g4 {[%emt 0:01:30]} 31. Re1 {[%emt 0:07:30]} Rf3 {[%emt 0:06:45]} 32. Ng1 {[%emt 0:07:30]} h3+ {[%emt 0:01:13]} 33. Kh1 {[%emt 0:01:30]} Rf2 {[%emt 0:00:42]} 34. Ne2 {[%emt 0:03:30]} Rg2 {[%emt 0:01:04]} 35. Nc3 {[%emt 0:03:30]} g3 {[%emt 0:01:23]} 36. Ne2 {[%emt 0:18:08]} Kg5 {[%emt 0:01:38]} 37. Nxg3 {[%emt 0:04:02]} Rxg3 {[%emt 0:00:02]} 38. Rg1 {[%emt 0:03:12]} Rxg1+ {[%emt 0:02:17]} 39. Kxg1 {[%emt 0:00:02]} Kg4 {[%emt 0:00:19]} 40. b4 {[%emt 0:00:09]} c5 {[%emt 0:01:36]} 41. b5 {[%emt 0:02:47]} a5 {[%emt 0:00:01]} 42. d4 {[%emt 0:00:23]} Kf3 {[%emt 0:01:17]} 0-1

[Event "26th Troya Open 2018"]
[Site "Canakkale"]
[Date "2018.08.09"]
[Round "6.18"]
[White "Erdem, Berkin"]
[Black "Istekli, Erdem"]
[Result "1/2-1/2"]
[ECO "D35"]
[WhiteElo "1614"]
[BlackElo "1713"]
[Annotator "NA"]
[PlyCount "45"]
[EventDate "2018.08.06"]
[EventType "swiss"]
[EventCountry "TUR"]
[SourceTitle "playchess.com"]
[Source "ChessBase"]
[SourceQuality "1"]
[TimeControl "5400+30"]

1. c4 e6 2. Nc3 d5 3. d4 c6 4. Bf4 Bd6 5. Bxd6 Qxd6 6. e3 Nf6 7. Nf3 O-O 8. Bd3 {[%emt 0:42:00] [%clk 0:52]} Nbd7 {[%emt 0:55:00]} 9. cxd5 {[%emt 0:00:30]} exd5 {[%emt 0:00:30]} 10. Rc1 {[%emt 0:00:30]} Re8 {[%emt 0:00:30]} 11. Qc2 {[%emt 0:00:30]} Nf8 {[%emt 0:00:30]} 12. Ne2 {[%emt 0:00:30]} Ng6 {[%emt 0:00:30]} 13. Bxg6 {[%emt 0:00:30]} hxg6 {[%emt 0:00:30]} 14. Ne5 {[%emt 0:00:30]} Ng4 {[%emt 0:00:30]} 15. Nxg4 {[%emt 0:00:30]} Bxg4 {[%emt 0:00:30]} 16. Ng3 {[%emt 0:00:30]} Qb4+ {[%emt 0:00:30]} 17. Qd2 {[%emt 0:00:30]} a5 {[%emt 0:00:30]} 18. a3 {[%emt 0:00:30]} Qxd2+ {[%emt 0:00:30]} 19. Kxd2 {[%emt 0:00:30]} Bf5 {[%emt 0:00:30]} 20. Ne2 {[%emt 0:00:30]} g5 {[%emt 0:00:30]} 21. Rc3 {[%emt 0:04:30]} g4 {[%emt 0:05:30]} 22. Ng3 {[%emt 0:03:30]} Be4 {[%emt 0:00:30]} 23. Nxe4 {[%emt 0:00:00]} 1/2-1/2

[Event "26th Troya Open 2018"]
[Site "Canakkale"]
[Date "2018.08.09"]
[Round "6.19"]
[White "Uysal, Ugur"]
[Black "Ulupinar, Furkan"]
[Result "1/2-1/2"]
[ECO "E60"]
[WhiteElo "1689"]
[BlackElo "1412"]
[Annotator "NA"]
[PlyCount "67"]
[EventDate "2018.08.06"]
[EventType "swiss"]
[EventCountry "TUR"]
[SourceTitle "playchess.com"]
[Source "ChessBase"]
[SourceQuality "1"]
[TimeControl "5400+30"]

1. Nf3 c5 2. c4 Nc6 3. d4 cxd4 4. Nxd4 Nf6 5. g3 g6 6. Bg2 Bg7 7. Nb3 d6 8. O-O O-O 9. Nc3 Be6 10. c5 d5 11. Bg5 Rc8 {[%emt 0:54:30] [%clk 0:41]} 12. Rc1 {[%emt 0:42:00]} h6 {[%emt 0:00:30]} 13. Bxf6 {[%emt 0:00:30]} Bxf6 {[%emt 0:00:30]} 14. Qd2 {[%emt 0:00:30]} d4 {[%emt 0:00:30]} 15. Ne4 {[%emt 0:00:30]} Bg7 {[%emt 0:00:30]} 16. f4 {[%emt 0:00:30]} a5 {[%emt 0:00:30]} 17. Qd1 {[%emt 0:00:30]} Nb4 {[%emt 0:00:30]} 18. a3 {[%emt 0:00:30]} Nd5 {[%emt 0:00:30]} 19. Nxd4 {[%emt 0:00:30]} Nxf4 {[%emt 0:00:30]} 20. Nxe6 {[%emt 0:00:30]} Nxe6 {[%emt 0:00:30]} 21. b4 {[%emt 0:00:30]} Bb2 {[%emt 0:00:30]} 22. Qxd8 {[%emt 0:00:30]} Rfxd8 {[%emt 0:00:30]} 23. Rb1 {[%emt 0:00:30]} Bxa3 {[%emt 0:00:30]} 24. bxa5 {[%emt 0:00:30]} Nxc5 {[%emt 0:00:30]} 25. Nxc5 {[%emt 0:00:30]} Rxc5 {[%emt 0:00:30]} 26. Bxb7 {[%emt 0:01:30]} Rxa5 {[%emt 0:01:30]} 27. Rbd1 {[%emt 0:00:30]} Rxd1 {[%emt 0:04:30]} 28. Rxd1 {[%emt 0:00:30]} Rb5 {[%emt 0:00:00]} 29. Bc6 {[%emt 0:00:30]} Rb2 {[%emt 0:00:00]} 30. Bf3 {[%emt 0:00:30]} Kg7 {[%emt 0:00:30]} 31. Kg2 {[%emt 0:00:30]} h5 {[%emt 0:03:30]} 32. Rd3 {[%emt 0:00:00]} Bc5 {[%emt 0:00:30]} 33. Rd5 {[%emt 0:00:00]} Be3 {[%emt 0:00:30]} 34. Re5 {[%emt 0:00:30]} 1/2-1/2

[Event "26th Troya Open 2018"]
[Site "Canakkale"]
[Date "2018.08.09"]
[Round "6.20"]
[White "Gurses, Ayberk"]
[Black "Celik, Meric"]
[Result "1/2-1/2"]
[ECO "B45"]
[WhiteElo "1660"]
[BlackElo "1471"]
[Annotator "NA"]
[PlyCount "145"]
[EventDate "2018.08.06"]
[EventType "swiss"]
[EventCountry "TUR"]
[SourceTitle "playchess.com"]
[Source "ChessBase"]
[SourceQuality "1"]
[TimeControl "5400+30"]

1. e4 c5 2. Nf3 e6 3. d4 cxd4 4. Nxd4 Nf6 5. Nc3 Nc6 6. Ndb5 Bb4 7. a3 Bxc3+ 8. Nxc3 d5 9. exd5 Nxd5 10. Ne4 O-O 11. Bd3 f5 {[%emt 0:59:30] [%clk 0:35]} 12. Ng3 {[%emt 0:46:00]} Qf6 {[%emt 0:01:30]} 13. O-O {[%emt 0:00:30]} Nb6 {[%emt 0:00:30]} 14. Nh5 {[%emt 0:00:30]} Qf7 {[%emt 0:00:30]} 15. b4 {[%emt 0:00:30]} g6 {[%emt 0:00:30]} 16. Ng3 {[%emt 0:00:30]} e5 {[%emt 0:01:30]} 17. f3 {[%emt 0:05:30]} Qd5 {[%emt 0:09:30]} 18. Re1 {[%emt 0:06:30]} f4 {[%emt 0:02:30]} 19. Ne2 {[%emt 0:00:30]} Rd8 {[%emt 0:01:30]} 20. Kh1 {[%emt 0:05:30]} Bf5 {[%emt 0:06:07]} 21. Nc3 {[%emt 0:09:30]} Qd4 {[%emt 0:01:32]} 22. Bb2 {[%emt 0:04:30]} Bxd3 {[%emt 0:00:53]} 23. cxd3 {[%emt 0:01:30]} Qxd3 {[%emt 0:00:24]} 24. Qxd3 {[%emt 0:01:12]} Rxd3 {[%emt 0:00:11]} 25. Ne4 {[%emt 0:04:05]} Na4 {[%emt 0:02:09]} 26. Bc1 {[%emt 0:02:48]} Rad8 {[%emt 0:00:53]} 27. Kg1 {[%emt 0:00:36]} Nd4 {[%emt 0:01:28]} 28. Nf2 {[%emt 0:02:50]} Nc2 {[%emt 0:02:25]} 29. Nxd3 {[%emt 0:03:24]} Rxd3 {[%emt 0:00:06]} 30. Bxf4 {[%emt 0:01:41]} exf4 {[%emt 0:01:16]} 31. Red1 {[%emt 0:00:40]} Rxd1+ {[%emt 0:05:32]} 32. Rxd1 {[%emt 0:00:01]} Nb6 {[%emt 0:00:04]} 33. Rd8+ {[%emt 0:00:57]} Kg7 {[%emt 0:01:00]} 34. Rb8 {[%emt 0:00:15]} Nxa3 {[%emt 0:01:21]} 35. Rxb7+ {[%emt 0:00:46]} Kh6 {[%emt 0:00:12]} 36. Rxa7 {[%emt 0:00:00]} Nac4 {[%emt 0:00:52]} 37. g4 {[%emt 0:01:22]} g5 {[%emt 0:01:19]} 38. Rc7 {[%emt 0:00:38]} Ne5 {[%emt 0:01:29]} 39. Kg2 {[%emt 0:01:58]} Kg6 {[%emt 0:00:30]} 40. Re7 {[%emt 0:00:30]} Nbd7 {[%emt 0:00:38]} 41. b5 {[%emt 0:00:41]} h5 {[%emt 0:00:58]} 42. gxh5+ {[%emt 0:01:03]} Kxh5 {[%emt 0:00:07]} 43. b6 {[%emt 0:01:13]} Kg6 {[%emt 0:00:31]} 44. b7 {[%emt 0:01:43]} Kf6 {[%emt 0:00:10]} 45. Rh7 {[%emt 0:00:59]} Kg6 {[%emt 0:01:20]} 46. Rh8 {[%emt 0:00:41]} Nc6 {[%emt 0:00:14]} 47. Rc8 {[%emt 0:00:25]} Ncb8 {[%emt 0:00:23]} 48. h3 {[%emt 0:00:40]} Kf5 {[%emt 0:01:28]} 49. Kf2 {[%emt 0:00:38]} Ke5 {[%emt 0:00:36]} 50. Ke2 {[%emt 0:00:15]} Na6 {[%emt 0:00:38]} 51. Rd8 {[%emt 0:00:36]} Nab8 {[%emt 0:00:32]} 52. Kd2 {[%emt 0:00:49]} Kf6 {[%emt 0:00:41]} 53. Kc3 {[%emt 0:00:34]} Ke6 {[%emt 0:00:45]} 54. Rg8 {[%emt 0:00:15]} Kf6 {[%emt 0:00:08]} 55. Kc4 {[%emt 0:00:48]} Nc6 {[%emt 0:00:32]} 56. Rh8 {[%emt 0:00:46]} Na5+ {[%emt 0:00:11]} 57. Kd5 {[%emt 0:00:30]} Nxb7 {[%emt 0:00:34]} 58. Kc6 {[%emt 0:00:09]} Nbc5 {[%emt 0:00:00]} 59. Rh6+ {[%emt 0:00:38]} Kf5 {[%emt 0:00:16]} 60. Rd6 {[%emt 0:00:38]} Ke5 {[%emt 0:00:30]} 61. Rd5+ {[%emt 0:00:00]} Kf6 {[%emt 0:00:00]} 62. Kd6 {[%emt 0:00:00]} Kg6 {[%emt 0:00:37]} 63. Ke7 {[%emt 0:00:35]} Kh5 {[%emt 0:00:36]} 64. Rf5 {[%emt 0:00:00]} Kh4 {[%emt 0:00:42]} 65. Kd6 {[%emt 0:00:12]} Kg3 {[%emt 0:00:18]} 66. Rxg5+ {[%emt 0:00:38]} Kxf3 {[%emt 0:00:06]} 67. Rg7 {[%emt 0:00:23]} Ke2 {[%emt 0:01:26]} 68. h4 {[%emt 0:00:32]} f3 {[%emt 0:00:32]} 69. Re7+ {[%emt 0:00:14]} Kd2 {[%emt 0:00:23]} 70. Rf7 {[%emt 0:01:28]} Ke2 {[%emt 0:00:41]} 71. h5 {[%emt 0:00:26]} Nf6 {[%emt 0:00:37]} 72. Kxc5 {[%emt 0:00:55]} Nxh5 {[%emt 0:00:42]} 73. Kd5 {[%emt 0:00:47]} 1/2-1/2

[Event "26th Troya Open 2018"]
[Site "Canakkale"]
[Date "2018.08.11"]
[Round "9.3"]
[White "Mgeladze, Tamaz"]
[Black "Semiev, Suhrab"]
[Result "1/2-1/2"]
[ECO "A29"]
[WhiteElo "2400"]
[BlackElo "2285"]
[Annotator "RC"]
[PlyCount "148"]
[EventDate "2018.08.06"]
[EventType "swiss"]
[EventCountry "TUR"]
[SourceTitle "playchess.com"]
[Source "ChessBase"]
[SourceQuality "1"]
[TimeControl "5400+30"]

1. c4 {[%emt 0:00:30]} e5 {[%emt 0:00:30]} 2. g3 {[%emt 0:00:30]} Nf6 {[%emt 0:00:30]} 3. Bg2 {[%emt 0:00:30]} d5 {[%emt 0:00:30]} 4. cxd5 {[%emt 0:00:30]} Nxd5 {[%emt 0:00:00]} 5. Nc3 {[%emt 0:00:30]} Nb6 {[%emt 0:00:00]} 6. d3 {[%emt 0:00:30]} Be7 {[%emt 0:00:30]} 7. Be3 {[%emt 0:00:30]} O-O {[%emt 0:00:30]} 8. Rc1 {[%emt 0:01:30]} Kh8 {[%emt 0:01:30]} 9. Nf3 {[%emt 0:04:30]} Nc6 {[%emt 0:00:30]} 10. O-O {[%emt 0:00:00]} f5 {[%emt 0:00:30]} 11. a3 {[%emt 0:02:00]} Be6 {[%emt 0:04:30]} 12. b4 {[%emt 0:03:30]} a6 {[%emt 0:01:30]} 13. Na4 {[%emt 0:06:30]} Nxa4 {[%emt 0:15:30]} 14. Qxa4 {[%emt 0:00:30]} Bd5 {[%emt 0:03:30]} 15. Rfe1 {[%emt 0:11:30]} f4 {[%emt 0:09:30]} 16. Bc5 {[%emt 0:10:30]} Bd6 {[%emt 0:00:30]} 17. Nd2 {[%emt 0:05:30]} Bxg2 {[%emt 0:02:30]} 18. Kxg2 {[%emt 0:00:30]} Qe8 {[%emt 0:03:30]} 19. Ne4 {[%emt 0:03:30]} Rd8 {[%emt 0:00:30]} 20. b5 {[%emt 0:02:30]} Ne7 {[%emt 0:03:30]} 21. Qb4 {[%emt 0:02:30]} Nd5 {[%emt 0:04:30]} 22. Qb3 {[%emt 0:03:30]} Qf7 {[%emt 0:00:30]} 23. Kg1 {[%emt 0:00:00]} axb5 {[%emt 0:03:30]} 24. Qxb5 {[%emt 0:03:00]} Bxc5 {[%emt 0:01:30]} 25. Rxc5 {[%emt 0:00:30]} c6 {[%emt 0:00:00]} 26. Qb2 {[%emt 0:00:00] [%clk 0:08.30]} Rde8 {[%emt 0:37:16]} 27. Nd6 {[%emt 0:29:30]} Qe7 {[%emt 0:00:30]} 28. Rxd5 {[%emt 0:00:30]} cxd5 {[%emt 0:00:30]} 29. Nxe8 {[%emt 0:00:30]} Rxe8 {[%emt 0:00:30]} 30. Rb1 {[%emt 0:00:30]} fxg3 {[%emt 0:00:30]} 31. hxg3 {[%emt 0:00:30]} Rb8 {[%emt 0:00:30]} 32. Qb4 {[%emt 0:00:30]} Qd7 {[%emt 0:00:30]} 33. Qb5 {[%emt 0:00:30]} Qf7 {[%emt 0:00:30]} 34. Qc5 {[%emt 0:00:30]} h6 {[%emt 0:00:30]} 35. Qd6 {[%emt 0:00:30]} Rf8 {[%emt 0:00:30]} 36. f3 {[%emt 0:00:30]} Re8 {[%emt 0:00:30]} 37. Rb4 {[%emt 0:00:30]} Kh7 {[%emt 0:00:30]} 38. Kg2 {[%emt 0:00:30]} d4 {[%emt 0:00:30]} 39. Rc4 {[%emt 0:00:30]} Qe6 {[%emt 0:00:30]} 40. Qxe6 {[%emt 0:00:30]} Rxe6 {[%emt 0:00:30]} 41. Rc7 {[%emt 0:00:30]} b6 {[%emt 0:00:30]} 42. Rd7 {[%emt 0:00:30]} Kg6 {[%emt 0:00:30]} 43. Kf2 {[%emt 0:00:30]} Kf6 {[%emt 0:00:30]} 44. Rd5 {[%emt 0:00:30]} g5 {[%emt 0:00:30]} 45. g4 {[%emt 0:00:30]} Rc6 {[%emt 0:00:30]} 46. a4 {[%emt 0:00:30]} Ke6 {[%emt 0:00:30]} 47. Rb5 {[%emt 0:00:30]} Kd6 {[%emt 0:00:30]} 48. Ke1 {[%emt 0:00:30]} Ke6 {[%emt 0:00:30]} 49. Kd2 {[%emt 0:00:30]} Kd6 {[%emt 0:00:30]} 50. a5 {[%emt 0:00:30]} bxa5 {[%emt 0:00:30]} 51. Rxa5 {[%emt 0:00:30]} Rb6 {[%emt 0:00:30]} 52. Ra7 {[%emt 0:00:30]} Rb2+ {[%emt 0:00:30]} 53. Kd1 {[%emt 0:00:30]} Rb6 {[%emt 0:00:30]} 54. Kc2 {[%emt 0:00:30]} Kd5 {[%emt 0:00:30]} 55. Rd7+ {[%emt 0:00:30]} Kc6 {[%emt 0:00:30]} 56. Rd8 {[%emt 0:00:30]} Kc5 {[%emt 0:00:30]} 57. Rh8 {[%emt 0:00:30]} Kd5 {[%emt 0:00:30]} 58. Kd2 {[%emt 0:00:30]} Rb2+ {[%emt 0:00:30]} 59. Ke1 {[%emt 0:00:30]} Rb6 {[%emt 0:00:30]} 60. Kf2 {[%emt 0:00:30]} Kc5 {[%emt 0:00:30]} 61. Rd8 {[%emt 0:00:30]} Rb7 {[%emt 0:00:30]} 62. Ra8 {[%emt 0:00:30]} Rb6 {[%emt 0:00:30]} 63. Rd8 {[%emt 0:00:30]} Rb7 {[%emt 0:00:30]} 64. Ke1 {[%emt 0:00:30]} Rb6 {[%emt 0:00:30]} 65. Kd2 {[%emt 0:00:30]} Rb2+ {[%emt 0:00:30]} 66. Kd1 {[%emt 0:00:30]} Rb7 {[%emt 0:00:30]} 67. Kc2 {[%emt 0:00:30]} Rb6 {[%emt 0:00:30]} 68. Rd7 {[%emt 0:00:30]} Kc6 {[%emt 0:00:30]} 69. Ra7 {[%emt 0:00:30]} Kc5 {[%emt 0:00:30]} 70. Ra2 {[%emt 0:00:30]} Kd5 {[%emt 0:00:30]} 71. Kd2 {[%emt 0:00:30]} Kc5 {[%emt 0:00:30]} 72. Kc2 {[%emt 0:00:30]} Kd5 {[%emt 0:00:30]} 73. Ra5+ {[%emt 0:00:30]} Kd6 {[%emt 0:00:30]} 74. Ra7 {[%emt 0:00:30]} Kc5 {[%emt 0:00:30]} 1/2-1/2

[Event "26th Troya Open 2018"]
[Site "Canakkale"]
[Date "2018.08.11"]
[Round "9.4"]
[White "Guseynov, Alihan"]
[Black "Laciner, Kerem"]
[Result "1-0"]
[ECO "A34"]
[WhiteElo "2329"]
[BlackElo "2240"]
[Annotator "NA"]
[PlyCount "99"]
[EventDate "2018.08.06"]
[EventType "swiss"]
[EventCountry "TUR"]
[SourceTitle "playchess.com"]
[Source "ChessBase"]
[SourceQuality "1"]
[TimeControl "5400+30"]

1. Nf3 {[%emt 0:00:30]} Nf6 {[%emt 0:00:30]} 2. c4 {[%emt 0:01:30]} c5 {[%emt 0:00:30]} 3. Nc3 {[%emt 0:00:00]} d5 {[%emt 0:02:30]} 4. cxd5 {[%emt 0:00:00]} Nxd5 {[%emt 0:00:00]} 5. e4 {[%emt 0:00:30]} Nxc3 {[%emt 0:00:00]} 6. dxc3 {[%emt 0:03:30]} Qxd1+ {[%emt 0:00:30]} 7. Kxd1 {[%emt 0:00:00]} Nc6 {[%emt 0:01:30]} 8. Be3 {[%emt 0:10:00]} e6 {[%emt 0:00:30]} 9. Kc2 {[%emt 0:03:30]} Bd7 {[%emt 0:09:30]} 10. Be2 {[%emt 0:08:30]} f6 {[%emt 0:06:30]} 11. h4 {[%emt 0:12:30]} Rd8 {[%emt 0:10:30]} 12. a4 {[%emt 0:05:30]} Bd6 {[%emt 0:08:30]} 13. Rhd1 {[%emt 0:25:30]} Ke7 {[%emt 0:00:00]} 14. a5 {[%emt 0:10:11] ˜} b6 {[%emt 0:02:00] 9} 15. axb6 {[%emt 0:00:58] ˜} axb6 {[%emt 0:00:00] 1} 16. Ra6 {[%emt 0:05:44] ˜} Rb8 {[%emt 0:03:00] ]} 17. e5 {[%emt 0:03:46] ˜ [%clk 0:00:45]} Nxe5 {[%emt 0:24:30]} 18. Nxe5 {[%emt 0:06:06]} Bxe5 {[%emt 0:00:30]} 19. Ra7 {[%emt 0:00:30]} Rhd8 {[%emt 0:00:30]} 20. Bb5 {[%emt 0:00:30]} Bd6 {[%emt 0:07:30]} 21. Rda1 {[%emt 0:00:20]} Rbc8 {[%emt 0:00:30]} 22. Kb3 {[%emt 0:00:30]} Rc7 {[%emt 0:00:30]} 23. Kc4 {[%emt 0:00:30]} Rb8 {[%emt 0:00:30]} 24. Bxd7 {[%emt 0:00:30]} Kxd7 {[%emt 0:00:30]} 25. Kb5 {[%emt 0:00:30]} f5 {[%emt 0:00:30]} 26. Rxc7+ {[%emt 0:00:30]} Kxc7 {[%emt 0:00:30]} 27. Ra7+ {[%emt 0:00:30]} Rb7 {[%emt 0:00:30]} 28. Ra8 {[%emt 0:00:30]} Be5 {[%emt 0:00:30]} 29. h5 {[%emt 0:00:30]} h6 {[%emt 0:00:30]} 30. f3 {[%emt 0:00:30]} Bf6 {[%emt 0:00:30]} 31. Rf8 {[%emt 0:00:40]} Kd7 {[%emt 0:00:30]} 32. Rf7+ {[%emt 0:00:30]} Kc8 {[%emt 0:00:30]} 33. Rf8+ {[%emt 0:00:07]} Kd7 {[%emt 0:03:10]} 34. Ka6 {[%emt 0:00:30]} Kc6 {[%emt 0:00:30]} 35. Rc8+ {[%emt 0:00:30]} Rc7 {[%emt 0:00:30]} 36. Rb8 {[%emt 0:00:24]} Kd5 {[%emt 0:00:00]} 37. Kb5 {[%emt 0:00:47]} Rc6 {[%emt 0:06:41]} 38. c4+ {[%emt 0:01:07]} Kd6 {[%emt 0:00:06]} 39. Rxb6 {[%emt 0:00:00]} Rxb6+ {[%emt 0:03:31]} 40. Kxb6 {[%emt 0:00:17]} Bd4 {[%emt 0:01:48]} 41. Bxd4 {[%emt 0:00:02]} cxd4 {[%emt 0:00:19]} 42. c5+ {[%emt 0:00:02]} Ke5 {[%emt 0:00:11]} 43. c6 {[%emt 0:00:26]} d3 {[%emt 0:00:27]} 44. c7 {[%emt 0:00:30]} d2 {[%emt 0:00:30]} 45. c8=Q {[%emt 0:00:00]} d1=Q {[%emt 0:00:00]} 46. Qc3+ {[%emt 0:00:36]} Qd4+ {[%emt 0:00:37]} 47. Kc6 {[%emt 0:01:38]} Qxc3+ {[%emt 0:00:58]} 48. bxc3 {[%emt 0:00:00]} Kf4 {[%emt 0:00:00]} 49. Kd6 {[%emt 0:00:20]} e5 {[%emt 0:03:03]} 50. g3+ {[%emt 0:00:13]} 1-0

[Event "26th Troya Open 2018"]
[Site "Canakkale"]
[Date "2018.08.11"]
[Round "9.6"]
[White "Yerden, Huseyin Eren"]
[Black "Lomsadze, Davit"]
[Result "0-1"]
[ECO "A42"]
[WhiteElo "2051"]
[BlackElo "2352"]
[Annotator "NA"]
[PlyCount "72"]
[EventDate "2018.08.06"]
[EventType "swiss"]
[EventCountry "TUR"]
[SourceTitle "playchess.com"]
[Source "ChessBase"]
[SourceQuality "1"]
[TimeControl "5400+30"]

1. d4 {[%emt 0:00:30]} g6 {[%emt 0:02:30]} 2. c4 {[%emt 0:00:30]} Bg7 {[%emt 0:00:00]} 3. g3 {[%emt 0:00:00]} d6 {[%emt 0:00:00]} 4. Bg2 {[%emt 0:00:00]} Nd7 {[%emt 0:00:30]} 5. Nc3 {[%emt 0:00:30]} e5 {[%emt 0:00:00]} 6. Nf3 {[%emt 0:00:30]} Ne7 {[%emt 0:00:00]} 7. O-O {[%emt 0:00:30]} O-O {[%emt 0:00:30]} 8. e4 {[%emt 0:03:30]} exd4 {[%emt 0:02:30]} 9. Nxd4 {[%emt 0:00:30]} Nc6 {[%emt 0:00:30]} 10. Nxc6 {[%emt 0:08:30]} bxc6 {[%emt 0:01:30]} 11. Qc2 {[%emt 0:00:30]} Rb8 {[%emt 0:02:30]} 12. b3 {[%emt 0:05:30]} a5 {[%emt 0:09:30]} 13. Bb2 {[%emt 0:02:30]} c5 {[%emt 0:04:30]} 14. f4 {[%emt 0:09:30]} Bd4+ {[%emt 0:06:30]} 15. Kh1 {[%emt 0:03:30]} Nb6 {[%emt 0:01:30]} 16. Rad1 {[%emt 0:08:30]} c6 {[%emt 0:11:30]} 17. f5 {[%emt 0:09:30]} Qe7 {[%emt 0:09:30]} 18. f6 {[%emt 0:05:30]} Qe5 {[%emt 0:03:30]} 19. Rxd4 {[%emt 0:12:30]} cxd4 {[%emt 0:00:30]} 20. Ne2 {[%emt 0:00:30]} c5 {[%emt 0:04:30]} 21. Qd2 {[%emt 0:00:30]} Kh8 {[%emt 0:00:30] [%clk 0:23]} 22. Qh6 {[%emt 0:19:59]} Rg8 {[%emt 0:15:30]} 23. Nf4 {[%emt 0:00:30]} Bb7 {[%emt 0:00:30]} 24. Nd3 {[%emt 0:00:30]} Qe6 {[%emt 0:00:30]} 25. Rf4 {[%emt 0:00:30]} g5 {[%emt 0:00:30]} 26. Bh3 {[%emt 0:00:30]} Bxe4+ {[%emt 0:00:30]} 27. Kg1 {[%emt 0:00:30]} Bf5 {[%emt 0:00:30]} 28. Nf2 {[%emt 0:00:30]} g4 {[%emt 0:00:30]} 29. Bf1 {[%emt 0:00:30]} Rg6 {[%emt 0:00:30]} 30. Qh4 {[%emt 0:00:30]} Nd7 {[%emt 0:00:30]} 31. Qh5 {[%emt 0:00:40]} Rxf6 {[%emt 0:00:30]} 32. h3 {[%emt 0:00:30]} Bg6 {[%emt 0:01:30]} 33. Qg5 {[%emt 0:04:30]} Qe3 {[%emt 0:02:30]} 34. Kg2 {[%emt 0:00:30]} Rxf4 {[%emt 0:00:30]} 35. gxf4 {[%emt 0:00:30]} gxh3+ {[%emt 0:00:30]} 36. Kg1 {[%emt 0:00:30]} h2+ {[%emt 0:00:00]} 0-1

[Event "26th Troya Open 2018"]
[Site "Canakkale"]
[Date "2018.08.11"]
[Round "9.7"]
[White "Olcum, Ahmet"]
[Black "Aliyev, Elnur"]
[Result "1-0"]
[ECO "C41"]
[WhiteElo "2274"]
[BlackElo "2190"]
[Annotator "NA"]
[PlyCount "65"]
[EventDate "2018.08.06"]
[EventType "swiss"]
[EventCountry "TUR"]
[SourceTitle "playchess.com"]
[Source "ChessBase"]
[SourceQuality "1"]
[TimeControl "5400+30"]

1. d4 {[%emt 0:08:30]} d6 {[%emt 0:03:30]} 2. e4 {[%emt 0:01:30]} Nf6 {[%emt 0:00:30]} 3. Nc3 {[%emt 0:00:30]} e5 {[%emt 0:00:00]} 4. Nge2 {[%emt 0:01:30]} exd4 {[%emt 0:00:00]} 5. Nxd4 {[%emt 0:00:30]} Be7 {[%emt 0:00:30]} 6. g3 {[%emt 0:04:30]} O-O {[%emt 0:05:30]} 7. Bg2 {[%emt 0:00:30]} Bg4 {[%emt 0:01:30]} 8. f3 {[%emt 0:00:30]} Bd7 {[%emt 0:00:30]} 9. O-O {[%emt 0:01:30]} Nc6 {[%emt 0:02:30]} 10. Nde2 {[%emt 0:01:30]} a5 {[%emt 0:06:30]} 11. h3 {[%emt 0:07:30]} Re8 {[%emt 0:03:30]} 12. f4 {[%emt 0:10:30]} Bf8 {[%emt 0:10:30]} 13. g4 {[%emt 0:00:30]} Nb4 {[%emt 0:13:30]} 14. g5 {[%emt 0:18:30]} Nh5 {[%emt 0:05:30]} 15. a3 {[%emt 0:00:30]} Na6 {[%emt 0:03:30]} 16. Bf3 {[%emt 0:00:30]} g6 {[%emt 0:03:30]} 17. Bxh5 {[%emt 0:00:30]} gxh5 {[%emt 0:00:00]} 18. Nd5 {[%emt 0:04:30]} Bg7 {[%emt 0:11:00]} 19. Ng3 {[%emt 0:01:30]} c6 {[%emt 0:02:30] [%clk 0:07.42]} 20. Nf6+ {[%emt 0:18:28]} Bxf6 {[%emt 0:17:48]} 21. gxf6 {[%emt 0:00:30]} Qxf6 {[%emt 0:00:30]} 22. Nxh5 {[%emt 0:00:30]} Qh4 {[%emt 0:00:30]} 23. Rf3 {[%emt 0:00:30]} d5 {[%emt 0:00:30]} 24. Rg3+ {[%emt 0:00:30]} Kf8 {[%emt 0:00:30]} 25. f5 {[%emt 0:01:37]} f6 {[%emt 0:04:12]} 26. Bh6+ {[%emt 0:00:30]} Ke7 {[%emt 0:00:08]} 27. Rg7+ {[%emt 0:08:21]} Kd8 {[%emt 0:01:16]} 28. exd5 {[%emt 0:00:33]} c5 {[%emt 0:01:30]} 29. Qg4 {[%emt 0:04:15]} Re1+ {[%emt 0:01:13]} 30. Rxe1 {[%emt 0:00:30]} Qxe1+ {[%emt 0:00:00]} 31. Kg2 {[%emt 0:00:00]} Qe5 {[%emt 0:00:53]} 32. Nxf6 {[%emt 0:00:34]} Bxf5 {[%emt 0:01:22]} 33. Rd7+ {[%emt 0:00:09]} 1-0